bitfinex/quotes_ETHUSD_20220111
["timestamp","ask_amount","ask_price","bid_price","bid_amount"]
[1641861552000,1.0,3064.7,3064.3,0.02216851]
[1641861552201,0.08157,3064.6,3064.3,0.02216851]
[1641861553003,2.77239665,3064.5,3064.3,0.02216851]
[1641861553254,0.08157,3064.4,3064.3,0.02216851]
[1641861553454,2.77239665,3064.5,3064.3,0.02216851]
[1641861554055,1.0,3064.4,3064.3,0.02216851]
[1641861554455,2.77239665,3064.5,3064.3,0.02216851]
[1641861555058,2.77239665,3064.4,3064.3,0.02216851]
[1641861555858,2.77239665,3064.7,3064.3,0.02216851]
[1641861556459,0.08157,3064.8,3064.3,0.02216851]
[1641861556659,2.73439214,3064.8,3064.3,0.02216851]
[1641861557088,1.9945022,3063.9,3063.8,0.02501063]
[1641861557289,1.9945022,3063.9,3063.4,0.02728432]
[1641861557789,1.23854051,3063.8,3063.4,0.02728432]
[1641861558191,2.23854051,3063.8,3063.4,0.02728432]
[1641861558389,2.23854051,3063.8,3063.1,0.02898959]
[1641861558588,2.23854051,3063.8,3063.0,0.02955802]
[1641861558989,2.7724649,3063.7,3063.0,0.02955802]
[1641861560842,2.7724649,3063.7,3063.0,0.84572802]
[1641861561037,2.7724649,3063.7,3063.0,2.26189112]
[1641861561237,2.7724649,3063.7,3063.1,0.02898959]
[1641861570643,2.7724649,3063.7,3063.1,0.84515389]
[1641861571048,2.7724649,3063.7,3063.2,0.02842117]
[1641861572097,2.7724649,3063.7,3063.3,1.6320664]
[1641861572497,2.7724649,3063.7,3063.4,0.32728432]
[1641861572997,2.7724649,3063.7,3063.5,0.0267159]
[1641861573198,1.5560043,3063.6,3063.5,0.0267159]
[1641861574399,1.9945022,3063.9,3063.5,0.0267159]
[1641861574602,1.9945022,3063.9,3063.5,0.8427859]
[1641861575000,1.9945022,3063.9,3063.6,0.62614748]
[1641861575399,1.9945022,3063.9,3063.7,0.02557905]
[1641861577672,4.23708719,3064.6,3063.8,5.18597]
[1641861577871,4.15550719,3064.6,3064.2,0.8158722]
[1641861578074,4.15550719,3064.6,3064.3,0.50763549]
[1641861578272,4.15550719,3064.6,3064.3,0.529804]
[1641861578470,4.15550719,3064.6,3064.4,0.02160009]
[1641861578671,4.15550719,3064.6,3064.5,0.47]
[1641861578875,4.15550719,3064.6,3064.5,0.77]
[1641861579073,1.45554283,3064.7,3064.5,0.79103166]
[1641861579402,1.45554283,3064.7,3064.6,0.02046324]
[1641861579597,1.45554283,3064.7,3064.6,0.49046324]
[1641861583841,1.69224874,3065.0,3064.6,0.49046324]
[1641861584144,2.61067874,3065.0,3064.7,0.01989482]
[1641861584541,2.69224874,3065.1,3064.7,0.01989482]
[1641861584742,2.69224874,3065.1,3064.6,0.02046324]
[1641861584941,2.69224874,3065.1,3064.5,0.02103166]
[1641861585146,1.39587015,3065.0,3064.5,0.02103166]
[1641861585643,3.00654889,3065.0,3064.5,0.02103166]
[1641861586047,3.44788109,3064.9,3064.5,0.02103166]
[1641861586242,0.08157,3064.8,3064.5,0.02103166]
[1641861586646,0.08157,3064.8,3064.1,0.02330536]
[1641861587290,1.69224874,3064.8,3064.1,0.02330536]
[1641861587891,1.69224874,3064.8,3064.1,0.83926216]
[1641861588291,2.52171617,3064.7,3064.2,0.02273693]
[1641861588892,1.0,3064.6,3064.2,0.02273693]
[1641861589090,0.08157,3064.6,3064.2,0.02273693]
[1641861589492,1.61067874,3064.6,3064.2,0.02273693]
[1641861589693,1.5215397,3064.4,3064.2,0.02273693]
[1641861592545,1.5215397,3064.4,3064.2,1.95446053]
[1641861592748,1.5215397,3064.4,3064.3,0.8158464]
[1641861592945,1.5215397,3064.4,3064.3,0.83801491]
[1641861593145,1.5215397,3064.4,3064.3,1.34759468]
[1641861593345,1.61067874,3064.8,3064.5,0.81572]
[1641861593546,1.61067874,3064.8,3064.6,0.77]
[1641861593746,1.61067874,3064.8,3064.6,0.82431427]
[1641861594048,2.28295905,3065.0,3064.7,0.05697423]
[1641861594249,2.28295905,3065.0,3064.8,0.47]
[1641861594555,5.02044605,3065.5,3064.9,1.13440797]
[1641861594739,5.02044605,3065.5,3065.2,0.81565]
[1641861594740,1.38914605,3065.5,3065.2,0.81565]
[1641861594940,7.25035905,3065.6,3065.3,0.47]
[1641861594941,2.28295905,3065.6,3065.3,0.47]
[1641861595139,2.28295905,3065.6,3065.3,0.52427474]
[1641861595340,2.28295905,3065.6,3065.4,0.01591585]
[1641861595539,4.15550719,3065.5,3065.4,0.01591585]
[1641861595939,4.15550719,3065.5,3065.4,0.04601145]
[1641861596441,2.28295905,3065.7,3065.3,1.28391601]
[1641861596641,2.28295905,3065.7,3065.4,0.85025264]
[1641861596840,0.00113684,3065.6,3065.4,1.11559]
[1641861597043,2.03409589,3065.7,3065.5,0.77]
[1641861597841,2.03409589,3065.7,3065.5,0.80339218]
[1641861598062,1.46551086,3065.9,3065.5,0.80339218]
[1641861598246,1.46551086,3065.9,3065.6,0.84977936]
[1641861598445,0.00113685,3065.8,3065.7,0.77]
[1641861598646,0.00113685,3065.8,3065.7,0.80279982]
[1641861598845,1.41664771,3065.9,3065.7,0.77]
[1641861599650,1.41664771,3065.9,3065.7,0.80296707]
[1641861599947,1.41664771,3065.9,3065.7,0.77]
[1641861601550,1.41664771,3065.9,3065.7,1.61649951]
[1641861602011,1.41664771,3065.9,3065.8,0.03043572]
[1641861602214,1.41664771,3065.9,3065.8,0.50043572]
[1641861602416,1.41664771,3065.9,3065.8,0.47]
[1641861602612,1.41664771,3065.9,3065.7,0.3]
[1641861603016,1.41664771,3065.9,3065.6,0.8156397]
[1641861603413,1.41664771,3065.9,3065.6,1.4156397]
[1641861603414,3.01776934,3065.9,3065.6,1.4156397]
[1641861603613,3.01776934,3065.9,3065.6,1.1156397]
[1641861603815,3.01776934,3065.9,3065.6,1.4156397]
[1641861604013,3.01776934,3065.9,3065.6,3.046724]
[1641861604214,3.01776934,3065.9,3065.6,1.9310843]
[1641861604914,1.41664771,3065.9,3065.6,1.9310843]
[1641861605114,1.41664771,3065.9,3065.6,0.3]
[1641861605313,3.85993941,3065.9,3065.4,0.77]
[1641861605514,4.93106197,3065.9,3065.4,0.77]
[1641861605741,0.08153,3065.8,3065.5,0.00170527]
[1641861606242,1.60112163,3065.7,3065.5,0.00170527]
[1641861606440,3.08154,3065.6,3065.5,0.00170527]
[1641861606641,3.08154,3065.6,3065.0,0.00454739]
[1641861606840,1.24521369,3065.3,3065.0,0.00454739]
[1641861607042,1.24521369,3065.3,3065.1,1.9313596]
[1641861607245,1.0,3065.5,3065.1,1.9313596]
[1641861607445,1.0,3065.5,3065.2,0.00341054]
[1641861607644,2.60112163,3065.6,3065.2,0.00341054]
[1641861608042,1.60112163,3065.6,3065.2,0.00341054]
[1641861608342,1.0,3065.5,3065.2,0.00341054]
[1641861608546,1.60112163,3065.6,3065.2,0.00341054]
[1641861608746,1.60112163,3065.6,3064.0,0.47]
[1641861608747,7.46515814,3065.5,3064.0,0.47]
[1641861608947,7.46515814,3065.5,3063.3,0.49604372]
[1641861608948,0.01249879,3065.3,3063.3,0.49604372]
[1641861609144,0.81618,3065.0,3064.1,0.00625266]
[1641861609416,0.38157,3064.9,3064.1,0.00625266]
[1641861609618,1.47769563,3064.8,3064.1,0.00625266]
[1641861609820,1.68269163,3064.7,3063.7,0.00852635]
[1641861610219,2.68269163,3064.7,3063.4,0.01023162]
[1641861610819,2.68269163,3064.7,3063.8,0.8160429]
[1641861611118,1.83814052,3064.3,3063.9,0.03779188]
[1641861611319,1.83814052,3064.3,3063.9,0.0073895]
[1641861611517,1.83814052,3064.3,3064.0,0.00682108]
[1641861611717,1.83814052,3064.3,3063.6,1.6320632]
[1641861611918,1.83814052,3064.3,3063.6,3.15838565]
[1641861612117,1.83814052,3064.3,3063.7,0.00852635]
[1641861612318,1.83814052,3064.3,3063.7,0.82450135]
[1641861612521,2.77306381,3064.2,3063.8,0.33895556]
[1641861612717,2.77306381,3064.2,3063.8,1.46289349]
[1641861612916,2.77306381,3064.2,3063.9,0.0073895]
[1641861613545,2.47190682,3064.1,3063.9,0.0073895]
[1641861613745,3.47190682,3064.1,3063.9,0.0073895]
[1641861613945,6.4648888,3064.0,3063.9,0.0073895]
[1641861614151,7.4648888,3064.0,3063.1,0.01193689]
[1641861614344,6.4648888,3064.0,3063.1,0.01193689]
[1641861614545,1.40461226,3063.5,3063.0,0.01250532]
[1641861614744,1.0,3063.9,3063.0,0.82872042]
[1641861615148,1.0,3064.0,3063.1,0.01193689]
[1641861615346,5.22446878,3063.9,3063.1,0.01193689]
[1641861615546,1.0816,3063.8,3063.1,0.01193689]
[1641861615748,2.69956235,3063.7,3063.1,0.01193689]
[1641861615949,0.0816,3063.6,3062.8,0.01364216]
[1641861616147,0.07407847,3063.6,3062.7,0.01421059]
[1641861616547,1.18160167,3063.0,3062.4,0.01591586]
[1641861618807,2.9,3062.9,3062.1,5.16724264]
[1641861619007,5.35763445,3062.9,3062.1,5.76724264]
[1641861619208,2.48058766,3062.8,3062.2,0.00113684]
[1641861619408,2.48058766,3062.8,3062.2,0.30113684]
[1641861619409,0.0022737,3062.8,3062.2,0.30113684]
[1641861619609,0.00170527,3062.7,3062.2,0.00113684]
[1641861620010,0.00113685,3062.6,3062.1,0.00170527]
[1641861620410,0.00170527,3062.7,3062.1,0.00170527]
[1641861620843,0.00113685,3062.6,3062.1,0.00170527]
[1641861621245,0.00170527,3062.7,3062.1,0.00170527]
[1641861621443,0.08162,3062.6,3062.1,0.00170527]
[1641861621643,0.08275685,3062.6,3062.1,0.00170527]
[1641861621844,0.00113685,3062.6,3062.1,0.00170527]
[1641861622044,0.00113685,3062.6,3062.0,1.2312737]
[1641861622045,0.00113685,3062.6,3062.0,1.22921269]
[1641861622445,0.0022737,3062.5,3062.0,1.22921269]
[1641861622849,0.00170527,3062.4,3062.0,1.22921269]
[1641861623246,0.00113685,3062.3,3062.0,1.52921269]
[1641861623544,0.00397897,3062.8,3062.0,1.52921269]
[1641861623946,0.00341054,3062.7,3062.0,1.22921269]
[1641861624145,0.00341054,3062.7,3062.1,0.05233403]
[1641861624398,0.00284212,3062.6,3062.0,1.22921269]
[1641861624795,0.0022737,3062.5,3062.0,1.22921269]
[1641861625196,0.00170527,3062.4,3062.0,1.22921269]
[1641861625399,1.56216327,3062.4,3062.0,1.22921269]
[1641861625596,0.00113685,3062.3,3062.0,1.22921269]
[1641861628002,0.08277685,3062.3,3062.0,1.22921269]
[1641861628678,0.08277685,3062.3,3062.0,0.9312737]
[1641861631579,0.08277685,3062.3,3062.0,1.5312737]
[1641861631779,0.00113685,3062.3,3062.1,2.99982472]
[1641861632006,0.00113685,3062.3,3062.2,4.19793635]
[1641861632206,0.00113685,3062.3,3062.2,4.96793635]
[1641861632406,0.00113685,3062.3,3062.2,4.98006122]
[1641861632605,0.00113685,3062.3,3062.2,7.51945798]
[1641861632806,0.00113685,3062.3,3062.2,7.48006122]
[1641861633006,0.00113685,3062.3,3062.2,4.98006122]
[1641861635511,0.08162,3063.5,3062.8,2.4485461]
[1641861635750,1.0,3063.6,3062.9,2.78415388]
[1641861636048,0.00625266,3063.4,3062.9,2.78415388]
[1641861636448,0.00568423,3063.3,3063.2,1.381144]
[1641861636847,0.00568423,3063.3,3063.1,0.81617]
[1641861637047,0.00568423,3063.3,3062.9,0.3]
[1641861637249,0.00511581,3063.2,3063.0,0.3]
[1641861637447,0.00511581,3063.2,3062.9,0.3]
[1641861637650,0.00454739,3063.1,3062.7,2.23238]
[1641861637951,1.21146314,3063.8,3063.0,1.19581161]
[1641861638351,0.00795793,3063.7,3063.0,1.49581161]
[1641861638552,0.0816,3063.6,3063.0,0.3]
[1641861638751,0.0889895,3063.6,3062.7,2.70238]
[1641861638952,0.00682108,3063.5,3062.7,2.70238]
[1641861639409,0.00625266,3063.4,3062.9,1.6324261]
[1641861639711,0.00568423,3063.3,3063.0,1.70780281]
[1641861640113,0.00511581,3063.2,3063.0,1.70780281]
[1641861640511,0.00454739,3063.1,3063.0,1.70780281]
[1641861642815,0.00454739,3063.1,3063.0,1.74451655]
[1641861643015,0.00454739,3063.1,3063.0,0.3]
[1641861643446,0.00454739,3063.1,3062.7,2.70238]
[1641861643642,0.00454739,3063.1,3062.9,0.8161815]
[1641861643848,0.00397896,3063.0,3062.9,0.8161815]
[1641861644041,0.00397896,3063.0,3062.9,2.63433807]
[1641861647000,0.00397896,3063.0,3062.9,1.81815657]
[1641861650202,2.77755368,3063.0,3062.9,1.81815657]
[1641861650846,2.77755368,3063.0,3062.9,0.3]
[1641861651249,2.77755368,3063.0,3062.7,2.40238]
[1641861651647,0.00341054,3062.9,3062.7,2.40238]
[1641861652047,2.77357472,3063.0,3062.8,1.44957214]
[1641861652246,2.77357472,3062.9,3062.8,2.73575714]
[1641861652449,2.77698526,3062.9,3062.8,5.09558522]
[1641861652647,2.77698526,3062.9,3062.8,5.69558522]
[1641861652848,1.60112163,3063.7,3062.9,5.0]
[1641861653048,1.60112163,3063.7,3063.3,1.37487696]
[1641861653247,0.00397896,3063.6,3063.4,0.47]
[1641861653545,1.60112163,3063.7,3063.4,0.47]
[1641861653546,0.00341054,3063.5,3063.4,1.07]
[1641861654393,0.00341054,3063.5,3063.4,3.37]
[1641861654991,0.00341054,3063.5,3063.4,5.87991531]
[1641861656593,0.00341054,3063.5,3063.4,3.57991531]
[1641861656895,0.00341054,3063.5,3063.1,1.63183]
[1641861657092,0.00341054,3063.5,3062.9,3.0928]
[1641861657292,0.00284212,3063.4,3062.9,3.0928]
[1641861657496,0.00284212,3063.4,3062.7,0.47]
[1641861657692,0.00227369,3063.3,3062.6,5.0431]
[1641861657893,1.32241177,3062.9,3062.4,0.8163046]
[1641861658155,0.00170527,3063.2,3062.8,0.81623]
[1641861658347,0.00170527,3063.2,3062.9,2.99149327]
[1641861658547,0.00113685,3063.1,3063.0,0.8160337]
[1641861658749,0.00113685,3063.1,3063.0,1.2860337]
[1641861659348,0.00113685,3063.1,3063.0,1.07]
[1641861661896,0.00113685,3063.1,3063.0,0.77]
[1641861662499,0.00113685,3063.1,3063.0,1.07]
[1641861662697,0.00113685,3063.1,3063.0,2.4730352]
[1641861663298,0.00113685,3063.1,3063.0,4.86395013]
[1641861664700,0.00113685,3063.1,3063.0,6.49601013]
[1641861664900,1.22226728,3063.9,3063.1,3.9]
[1641861665101,0.0816,3064.0,3063.6,1.1228846]
[1641861665301,0.00397896,3063.8,3063.7,3.39009121]
[1641861665501,0.00397896,3063.8,3063.7,4.19271512]
[1641861665747,0.00511581,3064.0,3063.7,5.27542512]
[1641861666246,0.00454739,3063.9,3063.7,4.3004632]
[1641861666447,0.00454739,3063.9,3063.8,8.28277533]
[1641861666649,0.00625266,3064.2,3063.8,9.85907533]
[1641861666850,0.00454739,3063.9,3063.8,9.85907533]
[1641861667050,0.00568423,3064.1,3063.8,11.49083533]
[1641861667248,0.00454739,3063.9,3063.8,11.49083533]
[1641861667447,0.00511581,3064.0,3063.8,5.64083533]
[1641861667647,1.42085756,3064.4,3063.9,2.55533648]
[1641861667851,1.42085756,3064.4,3064.1,0.815841]
[1641861668050,0.00682108,3064.3,3064.2,0.50028532]
[1641861668250,0.00682108,3064.3,3064.2,0.47]
[1641861668451,1.6102164,3064.7,3064.2,0.77]
[1641861668851,0.00852635,3064.6,3064.2,0.77]
[1641861669250,0.00795793,3064.5,3064.2,0.77]
[1641861669692,0.0073895,3064.4,3064.2,0.77]
[1641861670096,1.60112163,3064.7,3064.2,0.77]
[1641861670493,0.00852635,3064.6,3064.2,0.77]
[1641861670694,1.19358954,3064.6,3064.2,0.77]
[1641861670996,0.00795793,3064.5,3064.2,0.77]
[1641861671395,0.0073895,3064.4,3064.2,0.77]
[1641861671795,0.00795793,3064.5,3064.2,0.77]
[1641861672197,0.0073895,3064.4,3064.2,0.77]
[1641861672597,0.00795793,3064.5,3064.2,0.77]
[1641861672997,0.0073895,3064.4,3064.2,0.77]
[1641861673245,0.0073895,3064.4,3064.2,0.80777809]
[1641861673446,2.77258562,3064.4,3064.2,0.77]
[1641861674245,3.98206104,3064.7,3064.2,0.77]
[1641861674647,0.00852635,3064.6,3064.2,0.77]
[1641861675045,0.00795793,3064.5,3064.2,0.77]
[1641861675445,0.0073895,3064.4,3064.2,0.77]
[1641861675845,2.77258562,3064.4,3064.2,0.77]
[1641861676246,2.78054355,3064.5,3064.2,0.77]
[1641861676645,0.0073895,3064.4,3064.2,0.3]
[1641861676898,2.77997512,3064.4,3063.6,0.13819997]
[1641861677100,0.08158,3064.3,3063.0,0.50576403]
[1641861677300,0.08158,3064.3,3063.0,0.47]
[1641861677501,0.00625266,3064.2,3063.0,0.47]
[1641861677698,0.0816,3064.1,3063.0,0.47]
[1641861677899,0.08728423,3064.1,3063.0,0.47]
[1641861678101,0.00511581,3064.0,3063.0,0.47]
[1641861678500,0.00454739,3063.9,3063.0,0.77]
[1641861678698,1.11004966,3063.6,3063.0,0.80001387]
[1641861678898,1.11004966,3063.6,3063.0,1.10001387]
[1641861679098,0.00227369,3063.5,3063.0,1.10793797]
[1641861679499,0.00170527,3063.4,3063.0,1.10793797]
[1641861679804,0.00113684,3063.3,3063.0,1.10793797]
[1641861680302,2.77485931,3063.5,3063.0,1.10793797]
[1641861680500,2.77485931,3063.5,3063.0,1.07]
[1641861680783,0.00170527,3063.4,3063.0,1.10813211]
[1641861680983,0.00170527,3063.4,3063.0,1.07]
[1641861681188,0.00113684,3063.3,3063.0,0.47]
[1641861681386,0.00113684,3063.3,3062.7,0.00113685]
[1641861681584,3.52978562,3063.5,3062.7,0.00113685]
[1641861681585,0.00170527,3063.4,3062.7,0.00113685]
[1641861681783,0.00170527,3063.4,3062.7,0.0022737]
[1641861681984,3.52978562,3063.5,3062.6,0.00284212]
[1641861681985,0.00113684,3063.3,3062.6,0.00284212]
[1641861682386,0.00170527,3063.4,3062.6,0.00284212]
[1641861682790,0.00113684,3063.3,3062.6,0.00284212]
[1641861683188,2.77258562,3063.4,3062.6,0.00284212]
[1641861683189,2.77429089,3063.4,3062.6,0.00284212]
[1641861683687,0.00113684,3063.3,3062.6,0.00284212]
[1641861684187,1.08274684,3063.3,3062.6,0.00284212]
[1641861684405,2.11364684,3063.3,3062.5,0.00341054]
[1641861684604,0.89808,3063.2,3062.5,0.00341054]
[1641861684803,0.81661,3063.1,3062.2,0.00511581]
[1641861685006,0.08161,3063.0,3062.1,0.00568424]
[1641861685608,0.2496,3062.3,3062.1,0.00568424]
[1641861685803,2.38164,3062.2,3062.1,0.00568424]
[1641861686306,3.38164,3062.2,3062.1,0.00568424]
[1641861686503,0.08164,3062.2,3062.1,0.00568424]
[1641861686704,2.85422562,3062.2,3062.1,0.00568424]
[1641861686907,2.77258562,3062.2,3062.1,0.00568424]
[1641861687610,3.77258562,3062.2,3062.1,0.00568424]
[1641861687805,6.25923659,3062.2,3062.1,0.00568424]
[1641861688007,3.85422562,3062.2,3062.1,0.00568424]
[1641861688255,2.85422562,3062.2,3062.1,0.00568424]
[1641861688456,2.77258562,3062.2,3062.1,0.00568424]
[1641861689255,3.95312472,3062.6,3062.1,0.00568424]
[1641861689858,2.77258562,3062.5,3062.1,0.00568424]
[1641861690261,5.24735369,3062.5,3062.1,0.00568424]
[1641861690557,1.0,3062.4,3062.1,0.00568424]
[1641861690758,2.85420562,3062.5,3062.1,0.00568424]
[1641861690956,2.77258562,3062.5,3062.1,0.00568424]
[1641861691158,1.0,3062.4,3062.1,0.00568424]
[1641861691356,1.08162,3062.4,3062.1,0.00568424]
[1641861691560,2.85420562,3062.4,3062.1,0.00568424]
[1641861691757,2.77258562,3062.4,3062.1,0.00568424]
[1641861692904,2.77258562,3062.5,3062.1,0.00568424]
[1641861693303,3.9407,3062.9,3062.1,0.00568424]
[1641861693904,1.0,3062.8,3062.1,0.00568424]
[1641861694104,0.08162,3062.7,3062.1,0.00568424]
[1641861694905,2.77441354,3062.6,3062.1,0.00568424]
[1641861695754,3.50052446,3062.5,3062.1,0.00568424]
[1641861695953,0.08162,3062.4,3062.1,0.00568424]
[1641861696753,2.77441354,3062.3,3062.1,0.00568424]
[1641861696950,3.03164,3062.2,3062.1,0.00568424]
[1641861697150,4.03164,3062.2,3062.1,0.00568424]
[1641861698552,6.80605354,3062.2,3062.1,0.00568424]
[1641861698950,2.85605354,3062.2,3062.1,0.00568424]
[1641861699154,2.77441354,3062.2,3062.1,0.00568424]
[1641861699401,4.67055864,3062.2,3062.0,0.3]
[1641861699901,1.8961451,3062.2,3061.3,1.58809981]
[1641861700401,1.8961451,3062.2,3061.4,0.00397896]
[1641861700601,4.05435545,3062.1,3061.4,0.00397896]
[1641861701203,4.05435545,3062.1,3061.4,0.33530678]
[1641861701404,2.77441354,3062.0,3061.4,0.33530678]
[1641861701603,2.77441354,3062.0,3061.5,0.00341054]
[1641861703651,4.34368948,3062.1,3061.5,0.00341054]
[1641861703853,2.77441354,3062.1,3061.5,0.00341054]
[1641861704254,2.77441354,3062.0,3061.4,1.09945952]
[1641861704552,2.77441354,3062.0,3061.5,0.00341054]
[1641861704953,2.77441354,3062.0,3061.6,0.47]
[1641861705153,2.77441354,3062.1,3061.7,2.42119159]
[1641861705454,2.77441354,3062.1,3061.8,0.00170527]
[1641861706056,2.77725566,3062.6,3061.8,0.00170527]
[1641861706453,0.0022737,3062.5,3061.8,0.00170527]
[1641861706755,0.00170527,3062.4,3061.8,0.00170527]
[1641861707209,0.00113685,3062.3,3061.8,0.00170527]
[1641861707608,0.0022737,3062.5,3061.8,0.00170527]
[1641861708003,0.00170527,3062.4,3061.8,0.00170527]
[1641861708405,0.00113685,3062.3,3061.8,0.00170527]
[1641861708806,0.0022737,3062.5,3061.8,0.00170527]
[1641861709006,0.0022737,3062.5,3061.9,1.17561047]
[1641861709208,0.00170527,3062.4,3062.0,3.0163843]
[1641861709406,0.00170527,3062.4,3062.0,4.16912952]
[1641861709705,0.00113685,3062.3,3062.2,0.03192424]
[1641861709906,0.00113685,3062.3,3062.2,5.62710093]
[1641861710507,0.00113685,3062.3,3062.2,3.32710093]
[1641861712353,2.77441354,3063.3,3062.7,0.81617]
[1641861712651,0.00511581,3063.2,3062.8,2.96259695]
[1641861713052,0.00454739,3063.1,3062.8,2.96259695]
[1641861713252,0.00454739,3063.1,3062.8,4.21302492]
[1641861713453,0.00397896,3063.0,3062.8,4.21302492]
[1641861713655,0.00397896,3063.0,3062.8,1.7518012]
[1641861713952,0.00341054,3062.9,3062.8,0.50137323]
[1641861715603,0.00341054,3062.9,3062.8,0.47]
[1641861718455,0.00341054,3062.9,3062.7,0.3]
[1641861718655,0.00341054,3062.9,3062.3,1.07]
[1641861718854,0.00284212,3062.8,3062.3,1.07]
[1641861719255,0.00227369,3062.7,3062.3,1.07]
[1641861719652,0.00170527,3062.6,3062.3,1.07]
[1641861719856,0.00170527,3062.6,3062.3,1.1009628]
[1641861720054,0.00113685,3062.5,3062.3,1.07]
[1641861720253,0.00113685,3062.5,3062.3,1.1084441]
[1641861720454,0.00397896,3063.0,3062.3,1.10849864]
[1641861720654,0.00397896,3063.0,3062.4,0.8162644]
[1641861720855,0.00341054,3062.9,3062.4,0.8162644]
[1641861721055,0.00341054,3062.9,3062.4,1.1162644]
[1641861721256,0.00284212,3062.8,3062.5,0.81626]
[1641861721656,0.00227369,3062.7,3062.6,0.3]
[1641861721944,0.00227369,3062.7,3062.5,0.3]
[1641861722141,0.00227369,3062.7,3062.3,0.80985661]
[1641861722339,0.00170527,3062.6,3062.3,0.80985661]
[1641861722539,0.00170527,3062.6,3062.3,1.10985661]
[1641861722739,0.00113685,3062.5,3062.3,1.10335975]
[1641861723041,4.37915763,3063.0,3062.3,1.10335975]
[1641861723440,1.00341054,3062.9,3061.9,1.32343609]
[1641861723741,1.00341054,3062.9,3061.8,0.00170527]
[1641861723742,0.08446212,3062.8,3062.0,0.00170527]
[1641861723941,2.97250032,3062.8,3062.0,0.00170527]
[1641861724145,1.00227369,3062.7,3061.8,0.00284212]
[1641861724343,1.60112163,3062.4,3061.8,0.00284212]
[1641861724643,1.60112163,3062.4,3061.6,0.00397896]
[1641861724941,4.37517867,3062.3,3061.6,0.00397896]
[1641861725543,4.37517867,3062.3,3061.4,0.3]
[1641861725544,4.37517867,3062.3,3061.5,0.00454739]
[1641861725763,1.25543227,3062.2,3061.5,0.00454739]
[1641861725969,4.02948931,3062.2,3061.5,0.00454739]
[1641861726563,2.77405704,3062.1,3061.5,0.00454739]
[1641861726966,2.77405704,3062.1,3061.6,0.47]
[1641861727265,2.77405704,3062.1,3061.7,0.00341054]
[1641861727465,2.77405704,3062.1,3061.8,0.47]
[1641861727664,2.77405704,3062.1,3061.9,0.7346846]
[1641861727965,2.77405704,3062.3,3062.0,2.70961351]
[1641861728165,2.77405704,3062.3,3062.1,0.81632]
[1641861728463,2.77405704,3062.3,3062.2,0.63815466]
[1641861728664,2.77405704,3062.3,3062.2,0.6]
[1641861730108,0.08164,3062.4,3062.2,0.6]
[1641861730311,0.08164,3062.4,3062.2,1.3346633]
[1641861732214,2.77429827,3062.3,3062.2,0.3]
[1641861732414,2.77429827,3062.3,3062.2,0.6]
[1641861732614,2.77429827,3062.3,3062.1,0.30113685]
[1641861733016,2.77429827,3062.3,3062.2,5.42]
[1641861733283,0.00170527,3062.6,3062.2,5.42]
[1641861733284,0.00170527,3062.6,3062.3,4.95]
[1641861733483,0.00170527,3062.6,3062.5,0.3]
[1641861733682,1.60112163,3063.1,3062.5,7.61395339]
[1641861733882,4.15550719,3063.5,3062.7,0.81606]
[1641861734085,0.00397896,3063.0,3062.8,4.96682812]
[1641861734282,0.00397896,3063.0,3062.8,6.43573352]
[1641861734586,0.00341054,3062.9,3062.8,6.43573352]
[1641861734983,0.00341054,3062.9,3062.8,1.9389054]
[1641861735183,0.00341054,3062.9,3062.8,0.47]
[1641861736585,2.65341054,3062.9,3062.4,0.47]
[1641861736920,0.08161,3063.4,3062.4,0.47]
[1641861736921,0.00284212,3062.8,3062.4,0.47]
[1641861737320,1.21888397,3062.6,3062.4,0.47]
[1641861737720,1.21888397,3062.6,3062.1,0.00113685]
[1641861737721,0.00113685,3062.5,3062.1,0.00113685]
[1641861737922,0.08162,3062.4,3062.1,0.00113685]
[1641861738321,0.08162,3062.4,3061.8,0.00284212]
[1641861739922,0.08162,3062.4,3062.0,0.7346783]
[1641861740121,0.00113685,3062.5,3062.2,1.45407764]
[1641861740322,0.00113685,3062.5,3062.2,1.48648929]
[1641861740524,0.00113685,3062.5,3062.2,1.75407764]
[1641861740759,0.00113685,3062.5,3062.2,1.7898215]
[1641861740957,0.00113685,3062.5,3062.2,1.75407764]
[1641861741162,0.00113685,3062.5,3062.2,0.25]
[1641861741457,0.00113685,3062.5,3062.1,0.00113685]
[1641861741855,0.00113685,3062.5,3061.9,0.47]
[1641861741856,0.00113685,3062.5,3062.0,0.81805527]
[1641861742360,0.00113685,3062.5,3062.1,0.00113685]
[1641861742756,0.00113685,3062.5,3062.0,0.00170527]
[1641861742958,0.00113685,3062.5,3062.4,1.09219949]
[1641861743155,0.00113685,3062.5,3062.4,2.33234077]
[1641861743359,0.00113685,3062.5,3062.4,3.96451077]
[1641861743662,0.00113685,3062.5,3062.4,4.96451077]
[1641861743860,1.60112163,3062.9,3062.6,0.85401772]
[1641861744057,2.35163848,3063.2,3062.6,0.85401772]
[1641861744058,2.35163848,3063.2,3062.7,5.45336579]
[1641861744257,2.35163848,3063.2,3062.8,4.95]
[1641861744515,6.50714567,3063.8,3063.3,0.6526962]
[1641861744711,6.50714567,3063.8,3063.2,3.7530223]
[1641861744712,6.50714567,3063.8,3063.4,0.50728659]
[1641861744914,6.50714567,3063.8,3063.5,0.47]
[1641861745113,1.50597414,3063.7,3063.5,0.47]
[1641861745517,0.00454738,3063.6,3063.5,0.47]
[1641861746111,0.00454738,3063.6,3063.3,0.3]
[1641861746514,0.00397896,3063.5,3063.3,0.3]
[1641861746812,0.00341054,3063.4,3063.3,0.3]
[1641861752013,0.00341054,3063.4,3063.3,0.2967]
[1641861753813,0.00341054,3063.4,3062.6,0.505779]
[1641861754013,0.00341054,3063.4,3062.6,0.47]
[1641861754213,0.00284211,3063.3,3062.6,0.47]
[1641861754615,0.00227369,3063.2,3062.6,0.47]
[1641861755016,0.00170527,3063.1,3062.6,0.47]
[1641861755416,0.00113684,3063.0,3062.6,0.47]
[1641861755691,1.57602139,3063.3,3062.6,0.47]
[1641861756081,0.00227369,3063.2,3062.6,0.47]
[1641861756482,1.57602139,3063.4,3062.6,0.47]
[1641861756483,0.00170527,3063.1,3062.6,0.47]
[1641861756882,0.00113684,3063.0,3062.6,0.47]
[1641861757284,0.00284211,3063.3,3062.6,0.47]
[1641861757685,0.00227369,3063.2,3062.6,0.47]
[1641861758089,0.00170527,3063.1,3062.6,0.47]
[1641861758492,0.00113684,3063.0,3062.6,0.50845287]
[1641861758889,2.77554178,3063.1,3062.6,0.47]
[1641861759288,0.00113684,3063.0,3062.6,0.47]
[1641861759715,4.3498579,3063.3,3062.6,0.47]
[1641861760117,0.00227369,3063.2,3062.6,0.47]
[1641861760317,2.7761102,3063.2,3062.6,0.47]